bitfinex/quotes_ETHUSD_20250213
["timestamp","ask_amount","ask_price","bid_price","bid_amount"]
[1739460058981,4.692208,2658.8,2658.2,3.76181]
[1739460059319,0.0075,2658.7,2658.2,7.52367]
[1739460059482,0.0075,2658.7,2658.2,3.76181]
[1739460059677,0.5317208,2658.7,2658.2,3.76181]
[1739460060384,0.0075,2658.7,2658.2,3.76181]
[1739460060680,0.0075,2658.7,2658.3,3.76166]
[1739460060898,0.0075,2658.7,2657.7,3.7658]
[1739460061095,0.0075,2658.7,2658.2,3.76186]
[1739460061280,0.8234,2659.0,2657.8,3.03761931]
[1739460061480,0.8234,2659.0,2658.8,3.76101]
[1739460061683,0.8234,2659.0,2658.6,3.76131]
[1739460061684,0.8234,2659.0,2658.7,3.76113]
[1739460061906,0.8234,2659.0,2658.4,3.76154]
[1739460062217,0.015,2658.6,2658.2,3.76186]
[1739460062381,3.77638,2658.6,2658.1,3.76206]
[1739460062577,0.7709,2658.4,2658.1,3.76194]
[1739460062816,0.08050851,2658.5,2657.9,0.34702705]
[1739460063004,0.7634,2658.8,2658.5,3.76148]
[1739460063194,0.7825,2659.2,2659.1,3.76067]
[1739460063389,1.53602,2659.5,2659.0,3.76079]
[1739460063724,0.0075,2659.4,2659.1,3.76058]
[1739460063926,3.77536,2659.4,2658.8,7.52201]
[1739460064082,4.714903,2659.4,2658.8,3.761]
[1739460064277,0.0075,2659.3,2658.8,3.76098]
[1739460064482,3.77541,2659.3,2658.8,3.76098]
[1739460064705,0.015,2659.3,2658.6,3.76128]
[1739460064907,3.76024,2659.4,2658.7,3.76118]
[1739460065132,3.76052,2659.2,2658.6,3.76136]
[1739460065325,0.015,2659.1,2658.6,3.76136]
[1739460065485,0.0075,2659.2,2658.7,3.7611]
[1739460065681,3.76814,2659.2,2658.6,3.76127]
[1739460065923,0.0075,2658.9,2658.6,3.76127]
[1739460066126,0.0075,2658.9,2658.4,3.76155]
[1739460066328,3.77602,2658.9,2658.4,3.76155]
[1739460066746,0.015,2658.9,2658.5,3.76146]
[1739460067449,0.015,2658.9,2658.2,3.76183]
[1739460067650,0.0075,2658.7,2658.3,3.76168]
[1739460067811,0.07784594,2658.8,2658.5,3.76144]
[1739460068151,0.8253,2659.0,2658.8,3.76096]
[1739460068337,0.8253,2659.0,2658.6,3.76127]
[1739460068338,0.8253,2659.0,2658.7,3.76114]
[1739460068538,0.8253,2659.0,2658.8,3.76106]
[1739460068723,0.8253,2659.0,2658.8,7.52207]
[1739460069055,0.8253,2659.0,2658.9,3.76095]
[1739460069637,0.324,2659.1,2658.9,3.76082]
[1739460069841,0.324,2659.1,2658.8,3.76101]
[1739460070191,0.0075,2659.2,2658.8,3.76101]
[1739460070360,0.8369,2659.3,2658.5,0.03761104]
[1739460070655,0.8294,2659.7,2659.4,3.76021]
[1739460070864,0.8294,2659.7,2659.6,3.75996]
[1739460071165,0.005,2660.3,2658.9,3.76092]
[1739460071166,0.0075,2659.9,2659.8,3.7596]
[1739460071327,0.324,2660.1,2659.1,0.7741]
[1739460071535,0.324,2660.1,2659.9,3.75945]
[1739460071721,0.0075,2660.0,2659.7,3.75972]
[1739460071917,0.0075,2660.0,2659.9,3.75953]
[1739460072116,0.0075,2660.0,2659.7,7.51944]
[1739460072312,0.0075,2660.1,2659.5,3.7601]
[1739460072554,0.0075,2660.1,2659.9,3.75944]
[1739460072760,0.015,2660.1,2659.5,3.76004]
[1739460072956,0.015,2659.9,2659.3,3.7603]
[1739460073322,0.015,2659.9,2659.4,3.76022]
[1739460073534,0.7742,2660.2,2658.9,0.817]
[1739460073750,0.80290688,2660.2,2659.7,3.7597]
[1739460073972,0.7742,2660.2,2659.7,3.7597]
[1739460074188,0.0075,2660.1,2659.7,3.7597]
[1739460074326,0.0075,2660.1,2659.7,7.51943]
[1739460074527,0.04370688,2660.1,2659.1,3.76061]
[1739460074766,4.26494069,2660.1,2659.1,1.22737233]
[1739460074977,0.50559069,2660.1,2659.1,1.22737233]
[1739460075267,0.50559069,2660.1,2659.7,3.75974]
[1739460075649,0.53429757,2660.1,2659.3,3.76025]
[1739460075832,0.015,2659.7,2659.4,3.76017]
[1739460076030,0.0075,2659.5,2658.9,0.817]
[1739460076398,0.015,2659.5,2659.0,3.76074]
[1739460076695,0.0075,2659.4,2658.8,3.76099]
[1739460076857,0.015,2659.4,2658.9,3.76095]
[1739460077168,0.015,2659.4,2658.8,3.76099]
[1739460077169,3.77536,2659.4,2658.8,3.76104]
[1739460077499,0.8011,2659.6,2659.2,3.76048]
[1739460077638,0.8011,2659.6,2659.3,3.7603]
[1739460077840,0.8011,2659.6,2659.3,3.76037]
[1739460078411,0.7512,2660.0,2659.9,3.75953]
[1739460078705,1.0802,2660.3,2660.1,3.75915]
[1739460078831,0.7562,2660.3,2659.5,3.76008]
[1739460079031,0.7562,2660.3,2659.9,7.51892]
[1739460079235,3.76405,2660.3,2659.7,7.51947]
[1739460079434,0.005,2660.3,2660.0,3.75926]
[1739460079652,0.005,2660.3,2660.2,3.75911]
[1739460079890,0.005,2660.3,2660.2,4.56981]
[1739460081156,0.005,2660.3,2659.7,3.75971]
[1739460081379,0.005,2660.3,2660.2,3.75911]
[1739460081809,0.08144888,2660.3,2660.2,3.75911]
[1739460081934,0.005,2660.3,2660.2,3.75911]
[1739460084036,0.1451,2661.0,2660.9,3.75812]
[1739460085107,0.22154888,2661.0,2660.7,3.75829]
[1739460085317,0.22154888,2661.0,2660.5,3.75864]
[1739460085533,0.22154888,2661.0,2660.6,3.75855]
[1739460085534,0.1451,2661.0,2660.6,3.75855]
[1739460085740,0.07644888,2660.9,2660.8,3.75826]
[1739460086414,0.0075,2661.9,2660.9,0.7952]
[1739460086574,0.8012,2661.9,2661.6,3.75704]
[1739460086781,0.07371856,2661.8,2661.7,3.75691]
[1739460086976,0.84291856,2661.8,2661.2,3.75764]
[1739460087203,4.52613,2661.8,2661.3,3.75752]
[1739460087375,0.7692,2661.8,2661.7,3.75699]
[1739460087590,0.8038,2662.2,2661.8,3.75672]
[1739460087796,0.07371856,2661.7,2661.6,3.75713]
[1739460087989,4.5602,2662.2,2661.6,3.75713]
[1739460088175,0.07371856,2662.1,2661.6,3.75713]
[1739460088376,0.07371856,2662.1,2661.6,3.75706]
[1739460088578,0.07371856,2662.1,2661.7,3.75697]
[1739460088778,0.07371856,2662.1,2661.5,3.75715]
[1739460089002,3.83017856,2662.1,2661.6,3.75705]
[1739460089206,0.07371856,2662.1,2661.7,3.75688]
[1739460089518,0.07371856,2662.1,2661.7,3.75686]
[1739460089818,3.75657,2662.0,2661.5,3.75714]
[1739460089989,4.56021,2662.2,2661.3,0.8269]
[1739460090192,3.75665,2662.0,2661.4,3.75734]
[1739460090419,3.75674,2661.9,2661.4,3.75734]
[1739460090590,3.75674,2661.9,2661.4,3.75737]
[1739460090802,0.07556669,2661.8,2661.4,3.75737]
[1739460090983,3.75665,2662.0,2661.4,3.75737]
[1739460091177,3.75707,2661.7,2661.2,3.75765]
[1739460091515,0.9223594,2662.0,2661.3,3.75751]
[1739460091516,0.8246,2661.6,2661.3,3.75751]
[1739460091717,0.90016669,2661.6,2661.3,3.75751]
[1739460092020,0.07556669,2661.6,2661.5,3.75727]
[1739460092227,0.7947,2661.9,2661.4,3.7574]
[1739460092420,0.7947,2661.9,2661.6,3.75713]
[1739460092794,0.7947,2662.2,2661.6,3.75702]
[1739460093126,3.7566,2662.0,2661.4,3.7573]
[1739460093325,7.96842,2662.0,2661.4,3.7573]
[1739460093521,4.21173,2662.0,2661.4,7.51464]
[1739460093728,3.78544688,2661.9,2661.4,3.7573]
[1739460094023,0.07548039,2661.8,2661.5,3.7572]
[1739460094179,4.2117,2662.0,2661.4,3.75728]
[1739460094384,0.07548614,2661.9,2661.4,3.75728]
[1739460094585,0.07548614,2661.9,2661.6,3.75705]
[1739460095006,0.07548614,2661.9,2661.0,5.78930426]
[1739460095181,4.55107,2662.2,2661.7,3.75697]
[1739460095398,3.86076028,2662.1,2661.6,3.75713]
[1739460095612,0.0755034,2662.1,2662.0,3.75657]
[1739460095810,0.0755034,2662.1,2661.9,3.7567]
[1739460096000,0.0755034,2662.1,2662.0,3.75657]
[1739460096211,0.323,2662.5,2662.1,3.75631]
[1739460096520,4.565232,2662.5,2662.0,3.75649]
[1739460096724,6.0915734,2662.4,2661.8,3.75675]
[1739460096889,0.0755034,2662.4,2661.4,0.767]
[1739460097093,0.0755034,2662.4,2662.0,3.75648]
[1739460097290,0.0755034,2662.4,2662.3,3.75615]
[1739460097515,0.55,2662.8,2662.5,3.75586]
[1739460097736,0.55,2662.8,2662.3,3.75615]
[1739460097737,0.07561272,2662.4,2662.3,3.75615]
[1739460097885,0.55,2662.8,2662.5,3.75585]
[1739460098087,0.55,2662.8,2662.2,4.97400426]
[1739460098287,0.07561272,2662.7,2662.5,3.75573]
[1739460098523,0.55,2662.8,2662.4,3.75593]
[1739460099025,0.07604408,2662.7,2662.1,4.51163]
[1739460099224,0.07604408,2662.7,2662.3,3.75608]
[1739460099590,4.30545,2662.8,2662.1,3.7563]
[1739460099784,3.75595,2662.5,2661.9,7.98594481]
[1739460099984,3.75574,2662.6,2661.9,7.98594481]
[1739460099985,3.83179932,2662.4,2661.9,3.75659]
[1739460100196,0.07578932,2662.4,2661.9,3.75659]
[1739460100397,7.51198,2662.5,2661.9,3.75659]
[1739460100723,3.75617,2662.3,2661.8,3.75684]
[1739460100925,0.38319996,2662.3,2661.6,4.22932481]
[1739460101099,3.75644,2662.1,2661.6,4.22932481]
[1739460101298,3.75644,2662.1,2661.5,0.8282]
[1739460101504,3.75644,2662.1,2661.1,4.77167371]
[1739460101505,0.0075,2661.9,2661.1,4.77167371]
[1739460101690,3.75735,2661.5,2660.9,3.75804]
[1739460101892,3.75765,2661.3,2660.8,0.8259]
[1739460102235,3.75738,2661.5,2660.9,3.758]
[1739460102528,0.07589869,2661.2,2660.9,3.758]
[1739460102733,4.584701,2661.5,2660.9,3.758]
[1739460102734,7.51476,2661.5,2660.9,3.758]
[1739460102936,0.07589869,2661.1,2660.9,3.758]
[1739460103130,3.75738,2661.5,2660.9,3.758]
[1739460103333,0.07589869,2661.0,2660.9,3.758]
[1739460103658,1.0818,2661.7,2661.2,3.7576]
[1739460103795,0.7588,2661.7,2661.2,3.7576]
[1739460104022,0.76430437,2662.2,2661.4,3.75737]
[1739460104367,4.07937,2662.2,2661.6,3.75712]
[1739460104531,0.7973,2662.3,2661.5,0.7506]
[1739460104734,4.90427,2662.6,2662.0,3.75648]
[1739460104934,3.75602,2662.4,2661.8,3.75684]
[1739460105136,3.78472688,2662.4,2661.7,3.75699]
[1739460105339,3.7561,2662.4,2661.8,3.7568]
[1739460105563,3.7561,2662.4,2661.6,3.75702]
[1739460105876,4.5119,2662.0,2661.4,3.75735]
[1739460106071,5.33873,2662.0,2661.4,3.75731]
[1739460106360,4.55294,2662.2,2661.6,3.75706]
[1739460106560,3.77153,2662.1,2661.6,3.75706]
[1739460106777,0.015,2662.1,2661.6,3.75703]
[1739460107325,3.75665,2662.0,2661.4,3.75736]
[1739460107660,4.133965,2661.9,2661.4,3.75736]
[1739460107862,3.75688,2661.8,2661.2,3.75761]
[1739460108166,3.75723,2661.6,2661.0,3.7579]
[1739460108347,0.7955,2661.7,2661.3,3.75755]
[1739460108665,0.377165,2661.9,2661.5,3.75717]
[1739460108867,0.7955,2662.0,2661.5,3.75717]
[1739460109084,0.7955,2662.0,2661.5,3.75715]
[1739460109300,0.7955,2662.0,2661.0,4.22932481]
[1739460109301,0.015,2662.2,2661.9,3.75663]
[1739460109475,0.7814,2662.3,2661.9,3.7566]
[1739460110328,0.0075,2662.2,2661.7,3.75689]
[1739460110557,0.0075,2662.2,2661.5,3.75716]
[1739460110558,3.7713,2662.2,2661.5,3.75716]
[1739460110724,3.75658,2662.0,2661.4,3.75738]
[1739460110931,0.338,2662.2,2661.8,3.75676]
[1739460111290,0.825552,2662.2,2661.8,3.75676]
[1739460111575,0.825552,2662.2,2661.8,7.51353]
[1739460111777,0.825552,2662.2,2661.8,3.75676]
[1739460112498,0.07587569,2662.1,2661.8,3.75676]
[1739460112693,3.83230569,2662.1,2661.6,3.75704]
[1739460112998,0.07587569,2662.1,2661.7,3.75688]
[1739460113806,0.07587569,2662.1,2661.9,3.75667]
[1739460113944,0.07587569,2662.1,2662.0,3.75657]
[1739460114143,0.7614,2662.7,2662.3,3.75602]
[1739460114452,0.07585269,2662.6,2662.0,0.03755839]
[1739460114653,0.07585269,2662.6,2662.4,3.75591]
[1739460114850,0.323,2663.4,2662.6,3.75571]
[1739460115145,0.1451,2663.7,2662.7,0.03755315]
[1739460115498,0.1451,2663.7,2663.1,3.75501]
[1739460115792,0.0075,2663.6,2662.5,5.06212481]
[1739460115966,3.75498,2663.2,2662.6,3.75571]
[1739460116150,0.34670366,2663.6,2662.6,3.75571]
[1739460116353,7.50914,2663.5,2662.8,3.75535]
[1739460116571,3.82770366,2663.5,2662.8,3.75531]
[1739460116773,3.82769366,2663.5,2662.9,3.75522]
[1739460116982,0.07314366,2663.5,2662.6,3.75562]
[1739460117280,3.75492,2663.2,2662.6,3.75562]
[1739460117587,4.50738,2663.2,2662.6,3.75562]
[1739460117742,4.50738,2663.2,2662.7,3.75551]
[1739460117941,0.07314366,2663.1,2662.6,3.75562]
[1739460118179,0.07314366,2663.1,2663.0,3.75516]
[1739460118601,0.07314366,2663.1,2662.9,3.75529]
[1739460118737,3.76964,2663.4,2662.7,3.75547]
[1739460118943,0.07314366,2663.0,2662.7,3.75547]
[1739460119311,0.07314366,2662.9,2662.7,3.75547]
[1739460119460,3.75464,2663.4,2662.7,3.75547]
[1739460119791,3.75492,2663.2,2662.7,3.75547]
[1739460120141,3.75464,2663.4,2662.8,3.75543]
[1739460120353,0.07314366,2663.1,2663.0,3.75516]
[1739460120552,0.4845,2663.5,2663.0,3.75511]
[1739460120747,0.4845,2663.9,2663.1,0.7598]
[1739460120988,3.7541,2663.8,2663.1,0.7598]
[1739460121288,0.4995,2663.9,2662.8,0.8233]
[1739460121490,3.75434,2663.6,2663.1,3.7549]
[1739460121695,3.7541,2663.8,2663.2,3.7548]
[1739460121858,3.89936,2663.7,2663.2,3.7548]
[1739460122060,0.1451,2663.7,2663.2,3.75476]
[1739460122567,0.07375881,2663.6,2663.2,3.75475]
[1739460122768,0.07375881,2663.6,2663.4,3.75458]
[1739460122997,0.07375881,2663.6,2663.5,4.54045]
[1739460123198,0.1451,2663.7,2663.5,3.75445]
[1739460123375,0.07392545,2663.6,2663.5,3.75445]
[1739460123827,1.24753906,2664.6,2664.4,3.75319]
[1739460124029,2.26,2665.3,2664.4,4.53919]
[1739460124209,1e-05,2664.5,2664.4,9.14383381]
[1739460124395,1e-05,2664.5,2664.4,12.14383381]
[1739460125500,3.86796938,2665.7,2664.9,3.75238]
[1739460125785,0.4845,2665.6,2665.1,4.22932481]
[1739460125980,0.91975494,2665.6,2665.0,3.75221]
[1739460126180,3.75165,2665.5,2664.9,3.75248]
[1739460126403,0.91975494,2665.6,2664.8,4.22932481]
[1739460126574,0.11659938,2665.7,2665.1,7.98140481]
[1739460126780,0.11659938,2665.7,2665.2,3.75205]
[1739460127013,0.11659938,2665.7,2665.3,3.75178]
[1739460127217,0.11659938,2665.7,2665.1,7.98147481]
[1739460127218,0.11659938,2665.7,2665.6,3.7515]
[1739460127817,0.11659938,2665.7,2665.3,3.75185]
[1739460128017,0.11659938,2665.7,2665.2,0.755]
[1739460128320,0.11659938,2665.7,2665.2,4.50705]
[1739460128678,0.11659938,2665.7,2665.4,3.75168]
[1739460128913,0.11659938,2665.7,2665.2,4.50703]
[1739460129123,0.11659938,2665.7,2665.2,0.755]
[1739460129279,0.11659938,2665.7,2665.2,4.50697]
[1739460129698,0.11659938,2665.7,2665.4,3.75176]
[1739460130031,0.11659938,2665.7,2665.6,3.7515]
[1739460130326,9.38e-06,2665.7,2665.6,9.53118018]
[1739460130556,9.38e-06,2665.7,2665.6,12.53118018]
[1739460131825,0.1451,2666.3,2666.2,9.53333018]
[1739460132026,0.1451,2666.3,2666.2,10.8617422]
[1739460132231,0.1451,2666.3,2666.2,9.53333018]
[1739460132624,0.1451,2666.3,2665.6,0.74531454]
[1739460132955,0.1451,2666.3,2665.6,3.75138]
[1739460132956,0.05844336,2666.2,2665.6,3.75138]
[1739460133143,0.05844336,2666.2,2665.7,3.75131]
[1739460133545,0.05844336,2666.2,2665.8,3.75109]
[1739460133857,3.75095,2666.0,2665.3,3.75183]
[1739460134061,3.75122,2665.8,2665.1,8.32885]
[1739460134216,3.75122,2665.8,2665.2,3.75201]
[1739460134417,0.05997829,2665.7,2665.2,3.75201]
[1739460134618,0.42641569,2665.9,2665.2,3.75201]
[1739460134812,0.05997829,2665.8,2664.7,4.52946]
[1739460135028,0.05997829,2665.8,2665.5,3.75162]
[1739460135232,0.1451,2666.3,2665.6,3.78900654]
[1739460135453,0.1451,2666.3,2666.2,3.75065]
[1739460136063,0.1451,2666.3,2666.2,4.56495]
[1739460136225,0.4845,2667.9,2666.6,4.95368018]
[1739460136426,0.4845,2667.9,2666.8,3.74981]
[1739460136626,0.4845,2667.9,2666.6,5.4490482]
[1739460136627,3.75598,2667.8,2666.9,0.03749181]
[1739460136925,0.0075,2667.3,2666.7,3.74988]
[1739460137249,0.4845,2667.2,2666.3,3.0]
[1739460137416,0.4845,2667.8,2667.1,3.74939]
[1739460137620,0.015,2667.7,2666.4,0.03749445]
[1739460137825,0.03370688,2668.4,2667.9,3.74826]
[1739460137826,0.005,2668.4,2667.9,3.74826]
[1739460138062,5.9e-07,2668.4,2667.9,8.70194018]
[1739460138366,5.9e-07,2668.4,2668.3,11.70138018]
[1739460138723,5.9e-07,2668.4,2668.3,3.7477]
[1739460139763,5.9e-07,2668.4,2668.3,11.73884916]
[1739460140067,5.9e-07,2668.4,2668.3,14.4353361]
[1739460141290,0.1451,2669.0,2668.9,3.74686]
[1739460141421,0.1451,2669.0,2668.7,3.74701]
[1739460141422,0.1451,2669.0,2668.7,3.74709]
[1739460141619,0.1451,2669.0,2668.4,3.74756]
[1739460141962,0.06458263,2668.9,2668.2,3.74778]
[1739460142122,0.06458263,2668.9,2668.8,3.747]
[1739460142317,0.1451,2669.0,2668.6,3.74715]
[1739460142318,0.1451,2669.0,2668.9,3.74686]
[1739460142723,0.1451,2669.0,2668.4,3.74753]
[1739460142922,0.1451,2669.0,2668.5,3.74741]
[1739460143160,0.1451,2669.0,2668.7,3.74713]
[1739460143482,0.1451,2669.0,2668.9,3.74686]
[1739460144073,0.1451,2669.0,2668.9,6.74686]
[1739460144275,0.1451,2669.0,2668.9,6.78431598]
[1739460145194,0.1451,2669.0,2668.9,3.74686]
[1739460145329,0.1451,2669.0,2668.8,6.7469]
[1739460145554,0.1451,2669.0,2668.7,5.32839318]
[1739460145749,3.89182,2669.0,2668.6,0.8245]
[1739460145986,0.534282,2669.0,2668.3,4.95368018]
[1739460146185,3.74691,2668.9,2668.3,4.95368018]
[1739460146547,3.74691,2668.9,2667.8,0.19084012]
[1739460146548,3.77556688,2668.9,2667.9,4.95368018]
[1739460146748,0.1451,2669.0,2668.3,4.95368018]
[1739460146963,0.1451,2669.0,2668.9,3.74686]
[1739460147153,0.1451,2669.0,2668.7,8.70068018]
[1739460147349,0.1451,2669.0,2668.7,4.95368018]
[1739460147596,0.1451,2669.0,2668.9,3.74686]
[1739460147766,0.1451,2669.0,2668.9,6.74686]
[1739460147972,0.1451,2669.0,2668.8,0.49536802]
[1739460148171,0.1451,2669.0,2668.8,3.7469]
[1739460148378,0.06457117,2668.9,2668.7,8.70073018]
[1739460148579,0.06457117,2668.9,2668.8,3.747]
[1739460148779,0.1451,2669.0,2668.7,4.95368018]
[1739460149197,0.1451,2669.0,2668.9,3.74686]
[1739460149796,0.1451,2669.0,2668.9,5.02906301]
[1739460150036,0.1451,2669.0,2668.9,4.99160202]
[1739460150608,0.1451,2669.0,2668.9,8.77230202]
[1739460151012,0.1451,2669.0,2668.8,3.74688]
[1739460151013,0.1451,2669.0,2668.8,3.74699]
[1739460151171,0.1451,2669.0,2668.7,4.95368018]
[1739460151721,2.4051,2669.0,2668.1,0.8038]
[1739460151940,3.89182,2669.0,2668.4,3.74753]
[1739460152149,3.89182,2669.0,2668.4,3.74748]
[1739460152448,0.1451,2669.0,2668.9,4.50386]
[1739460152776,0.1451,2669.0,2668.8,3.74692]
[1739460153012,0.1451,2669.0,2668.6,3.74721]
[1739460153390,3.89187,2669.0,2668.4,3.74753]
[1739460153589,0.1451,2669.0,2668.1,0.757]
[1739460153778,0.1451,2669.0,2668.9,3.74686]
[1739460154291,0.1451,2669.0,2668.9,4.496238]
[1739460155076,0.20540994,2669.0,2668.3,4.95368018]
[1739460155274,0.1451,2669.0,2668.9,3.74686]
[1739460156275,0.4845,2668.9,2668.6,7.4944]
[1739460156603,0.1451,2669.0,2668.8,3.747]
[1739460156807,0.1451,2669.0,2668.8,3.74692]
[1739460157116,0.1451,2669.0,2668.4,3.74747]
[1739460157322,0.1451,2669.0,2667.9,3.74818]
[1739460157502,3.747,2668.8,2668.1,3.74796]
[1739460157690,3.74741,2668.6,2667.9,3.74816]
[1739460157893,3.74741,2668.6,2667.5,4.95368018]
[1739460157894,0.42918099,2668.7,2667.5,4.95368018]
[1739460158223,0.42918099,2668.7,2667.9,3.74814]
[1739460158224,0.06030994,2668.5,2667.9,3.74814]
[1739460158418,0.4845,2668.9,2668.0,0.03747418]
[1739460158625,0.4845,2668.9,2667.5,4.95368018]
[1739460158626,0.4845,2668.9,2668.3,3.74764]
[1739460158790,0.4845,2668.9,2668.4,3.74749]
[1739460158994,0.4845,2668.9,2668.4,3.74747]
[1739460159206,0.4845,2668.9,2667.5,8.70244018]
[1739460159207,4.23146,2668.9,2668.0,3.7481]
[1739460159522,7.49445,2668.7,2668.1,3.74797]
[1739460159822,7.49445,2668.7,2668.0,3.74812]
[1739460159823,3.74739,2668.6,2668.0,3.74812]
[1739460160021,7.49496,2668.5,2667.8,3.74827]
[1739460160192,0.437656,2668.8,2667.4,0.82]
[1739460160193,3.74771,2668.3,2667.7,3.74844]
[1739460160452,3.74837,2667.9,2667.3,5.941]
[1739460160582,3.74836,2667.9,2667.3,5.941]
[1739460160951,0.4845,2667.8,2667.3,5.941]
[1739460161103,0.4845,2667.8,2667.5,3.74873]
[1739460161291,0.4845,2667.8,2666.4,1.14092977]
[1739460161621,0.4845,2667.6,2666.6,0.7722]
[1739460161813,0.4845,2668.0,2667.5,3.74882]
[1739460162178,3.74839,2667.9,2667.3,3.74904]
[1739460162378,4.23275,2668.0,2667.1,3.74934]
[1739460162601,3.74842,2667.8,2667.1,4.124274]
[1739460162849,3.74871,2667.6,2667.1,0.374934]
[1739460162986,4.23274,2668.0,2667.1,0.374934]
[1739460163177,0.76249699,2668.5,2667.1,0.374934]
[1739460163178,4.23216,2668.4,2667.2,0.03748257]
[1739460163382,0.4845,2668.4,2667.5,3.74882]
[1739460163623,0.4845,2668.4,2668.0,3.74811]
[1739460163827,0.4845,2668.8,2667.7,0.7516]
[1739460164031,0.8165,2668.8,2668.1,3.74794]
[1739460164335,3.74724,2668.7,2668.1,3.74794]
[1739460164627,7.49451,2668.7,2668.1,3.74796]
[1739460164784,4.578341,2668.7,2667.9,3.74815]
[1739460165125,4.578341,2668.7,2668.1,3.74792]
[1739460165352,0.831101,2668.7,2668.2,3.74781]
[1739460165505,0.4845,2668.8,2668.2,3.74781]
[1739460165506,4.23154,2668.8,2668.2,3.74781]
[1739460165710,0.4845,2668.8,2668.3,0.03747473]
[1739460166060,0.4845,2669.1,2668.6,3.74717]
[1739460166345,0.8155,2669.1,2668.6,3.74717]
[1739460166643,0.4845,2669.1,2668.7,3.74701]
[1739460166982,0.4845,2670.1,2668.9,3.74686]
[1739460167209,0.33,2669.9,2668.9,4.20284261]
[1739460167543,0.33,2669.9,2668.9,0.45598261]
[1739460167744,3.74587,2669.7,2668.7,0.7755]
[1739460167999,3.74603,2669.5,2669.0,3.7467]
[1739460168164,4.07549,2669.9,2668.8,3.747]
[1739460168466,3.7459,2669.6,2669.1,3.74647]
[1739460168813,3.74583,2669.7,2669.1,3.74647]
[1739460169009,0.33,2669.9,2669.1,0.749326]
[1739460169226,0.33,2669.9,2668.7,4.52259]
[1739460169227,0.33,2669.9,2669.5,3.74601]
[1739460169437,0.33,2670.1,2669.5,3.74591]
[1739460169728,3.7456,2669.8,2669.3,3.74628]
[1739460169909,3.7456,2669.8,2669.1,3.7465]
[1739460170110,3.74595,2669.6,2668.9,3.74675]
[1739460170373,3.8057375,2669.7,2668.9,4.198975]
[1739460170555,3.74554,2669.9,2669.3,3.74626]
[1739460170709,0.0599075,2669.6,2669.4,3.74614]
[1739460171044,7.49111,2669.9,2669.3,3.74626]
[1739460171208,0.0599075,2669.5,2669.1,3.74654]
[1739460171410,3.74578,2669.7,2669.1,3.7465]
[1739460171616,0.0599075,2669.4,2669.2,3.74632]
[1739460171841,3.74556,2669.9,2668.9,0.452225]
[1739460172044,0.0599075,2669.8,2669.3,3.74617]
[1739460172484,0.0599075,2669.8,2668.9,0.452225]
[1739460172688,3.74592,2669.6,2669.0,3.7466]
[1739460172846,3.74592,2669.6,2668.8,3.74691]
[1739460173045,3.74617,2669.4,2668.9,3.74681]
[1739460173303,3.74616,2669.4,2668.6,3.74721]
[1739460173513,3.74616,2669.4,2668.3,0.7664]
[1739460173514,0.06008565,2669.3,2668.3,0.7664]
[1739460173646,3.74536,2670.0,2668.8,3.74693]
[1739460174003,0.76172475,2669.5,2668.6,3.74719]
[1739460174205,3.74651,2669.2,2668.6,3.74719]
[1739460174711,0.06008565,2669.1,2668.2,3.74775]
[1739460174930,0.06008565,2669.1,2668.1,3.74797]
[1739460175048,0.76172475,2669.5,2668.0,5.94]
[1739460175247,3.74682,2669.0,2668.5,3.74729]
[1739460175587,3.74665,2669.1,2668.5,3.74732]
[1739460175792,0.05975806,2668.9,2668.5,3.74732]
[1739460175996,3.74672,2669.0,2668.4,3.74743]
[1739460176231,0.05975806,2668.8,2668.5,7.49468]
[1739460176389,4.495897,2669.1,2668.4,3.74748]
[1739460176730,3.74667,2669.1,2667.9,0.98141288]
[1739460176934,0.05997657,2669.0,2668.0,3.78553175]
[1739460177143,0.327,2669.4,2668.7,3.74714]
[1739460177275,0.05992482,2668.9,2668.5,3.74732]
[1739460177470,3.74693,2668.9,2668.4,3.74756]
[1739460177724,0.05992482,2668.8,2668.4,3.7475]
[1739460177937,3.74715,2668.7,2667.9,4.53756]
[1739460178134,3.74735,2668.6,2668.0,3.74804]
[1739460178337,3.80727482,2668.6,2668.0,3.74809]
[1739460178544,3.74749,2668.5,2667.9,3.74818]
[1739460178848,3.74799,2668.1,2667.5,3.74872]
[1739460178976,0.015,2668.3,2667.3,3.749]
[1739460179367,0.015,2668.3,2667.2,3.74922]
[1739460179368,3.74843,2667.8,2667.2,3.74922]
[1739460179668,0.015,2668.0,2667.0,3.74951]
[1739460179869,3.7485,2667.8,2666.6,3.75009]
[1739460180000,0.05970057,2667.7,2667.1,3.74928]
[1739460180200,3.76319,2668.0,2666.8,0.03749021]
[1739460180201,0.328,2667.6,2666.8,0.03749021]
[1739460180465,0.05931517,2667.6,2667.2,3.74915]
[1739460180620,0.015,2668.0,2666.7,4.794979]
[1739460180621,0.328,2667.7,2666.7,4.794979]
[1739460180817,0.05931517,2667.5,2667.2,3.74915]
[1739460181171,0.05931517,2667.4,2666.9,3.74958]
[1739460181309,0.05931517,2667.4,2666.8,0.03749303]
[1739460181512,4.07673,2667.6,2667.0,3.74944]
[1739460181761,0.05931517,2667.3,2667.0,3.74943]
[1739460181903,0.05931517,2667.3,2666.6,3.75001]
[1739460181904,3.74911,2667.3,2666.6,3.75001]
[1739460182232,0.05931517,2667.2,2666.6,3.75001]
[1739460182569,0.05931517,2667.2,2666.9,3.74959]
[1739460182706,3.76405,2667.4,2666.7,3.74983]
[1739460182907,0.05918282,2667.1,2666.8,3.7497]
[1739460183171,0.328,2667.3,2666.8,3.7497]
[1739460183307,0.328,2667.3,2666.9,3.74967]